[Event "Turkish Cup 2024"]
[Site "Denizli"]
[Date "2024.08.02"]
[Round "5"]
[White "Hatirli, Ugur Can"]
[Black "Saricam, Ege"]
[Result "1/2-1/2"]
[ECO "E65"]
[WhiteElo "1948"]
[BlackElo "1794"]
[Annotator "RC"]
[PlyCount "122"]
[EventDate "2024.08.01"]
[EventType "swiss"]
[EventCountry "TUR"]
[SourceTitle "playchess.com"]
[Source "ChessBase"]
[SourceQuality "1"]
[TimeControl "5400+30"]

1. c4 {[%emt 0:01:00]} Nf6 {[%emt 0:01:00]} 2. d4 {[%emt 0:00:00]} g6 {[%emt 0:00:00]} 3. Nf3 {[%emt 0:01:00]} Bg7 {[%emt 0:00:00]} 4. b3 {[%emt 0:00:30]} O-O {[%emt 0:00:30]} 5. Bb2 {[%emt 0:00:30]} d6 {[%emt 0:00:30]} 6. g3 {[%emt 0:01:30]} Nbd7 {[%emt 0:00:00]} 7. Bg2 {[%emt 0:00:30]} Rb8 {[%emt 0:00:00]} 8. O-O {[%emt 0:01:30]} c5 {[%emt 0:00:30]} 9. Nc3 {[%emt 0:01:30]} a6 {[%emt 0:00:30]} 10. a4 {[%emt 0:02:30]} Ne8 {[%emt 0:01:30]} 11. e3 {[%emt 0:00:30]} Nc7 {[%emt 0:01:30]} 12. Qe2 {[%emt 0:00:30]} b6 {[%emt 0:00:30]} 13. Rfd1 {[%emt 0:06:30]} Nf6 {[%emt 0:03:30]} 14. e4 {[%emt 0:02:30]} Bg4 {[%emt 0:01:30]} 15. d5 {[%emt 0:05:30]} Qd7 {[%emt 0:00:30]} 16. Qc2 {[%emt 0:02:30]} Rb7 {[%emt 0:03:30]} 17. Re1 {[%emt 0:04:30]} Bxf3 {[%emt 0:03:30]} 18. Bxf3 {[%emt 0:00:30]} Rfb8 {[%emt 0:05:30]} 19. Be2 {[%emt 0:00:30]} Nfe8 {[%emt 0:11:30]} 20. f4 {[%emt 0:03:30]} Bd4+ {[%emt 0:00:30]} 21. Kg2 {[%emt 0:00:30]} e5 {[%emt 0:00:30]} 22. Rf1 {[%emt 0:08:30]} Kg7 {[%emt 0:13:30]} 23. Rf3 {[%emt 0:03:30]} Nf6 {[%emt 0:00:30]} 24. Raf1 {[%emt 0:09:30]} Ng4 {[%emt 0:00:30]} 25. Bc1 {[%emt 0:01:30]} exf4 {[%emt 0:02:30]} 26. gxf4 {[%emt 0:01:30]} Re8 {[%emt 0:17:30]} 27. Rg3 {[%emt 0:02:30]} Nf6 {[%emt 0:00:30]} 28. Bf3 {[%emt 0:00:30]} Rbb8 {[%emt 0:00:30]} 29. Ne2 {[%emt 0:00:30]} b5 {[%emt 0:03:30]} 30. axb5 {[%emt 0:01:30]} axb5 {[%emt 0:02:30]} 31. Nxd4 {[%emt 0:01:30]} cxd4 {[%emt 0:00:00]} 32. Bb2 {[%emt 0:00:30]} bxc4 {[%emt 0:01:00]} 33. Bxd4 {[%emt 0:04:30]} Nb5 {[%emt 0:00:30]} 34. Bxf6+ {[%emt 0:00:30]} Kxf6 {[%emt 0:00:30]} 35. bxc4 {[%emt 0:00:30]} Nc7 {[%emt 0:00:30]} 36. Qc3+ {[%emt 0:00:30]} Ke7 {[%emt 0:00:30]} 37. c5 {[%emt 0:03:30]} Nb5 {[%emt 0:01:30]} 38. Qb4 {[%emt 0:00:30]} dxc5 {[%emt 0:00:30]} 39. Qxc5+ {[%emt 0:00:30]} Qd6 {[%emt 0:00:00]} 40. Qxd6+ {[%emt 0:01:30]} Nxd6 {[%emt 0:00:00]} 41. Re1 {[%emt 0:01:30]} Rb2+ {[%emt 0:00:30]} 42. Kg1 {[%emt 0:00:00]} Rc8 {[%emt 0:00:00]} 43. Rg2 {[%emt 0:00:00]} Rb3 {[%emt 0:00:00]} 44. Bg4 {[%emt 0:00:00]} Rc4 {[%emt 0:00:30]} 45. Rge2 {[%emt 0:00:00]} h5 {[%emt 0:00:30]} 46. e5 {[%emt 0:03:30]} hxg4 {[%emt 0:01:30]} 47. exd6+ {[%emt 0:00:30]} Kxd6 {[%emt 0:00:00]} 48. Rd2 {[%emt 0:01:30]} Rxf4 {[%emt 0:00:00]} 49. Re8 {[%emt 0:02:30]} Kd7 {[%emt 0:00:30]} 50. Ra8 {[%emt 0:00:30]} g3 {[%emt 0:00:30]} 51. Ra7+ {[%emt 0:02:30]} Kd6 {[%emt 0:00:30]} 52. Ra6+ {[%emt 0:00:00]} Ke5 {[%emt 0:02:30]} 53. d6 {[%emt 0:02:00]} Rb1+ {[%emt 0:00:30]} 54. Kg2 {[%emt 0:00:30]} Rf2+ {[%emt 0:00:30]} 55. Rxf2 {[%emt 0:00:30]} gxf2 {[%emt 0:00:30]} 56. Kxf2 {[%emt 0:00:00]} Rd1 {[%emt 0:00:00]} 57. Ra7 {[%emt 0:00:00]} Ke6 {[%emt 0:00:00]} 58. Re7+ {[%emt 0:00:00]} Kf6 {[%emt 0:00:30]} 59. Rd7 {[%emt 0:00:00]} Rd2+ {[%emt 0:00:30]} 60. Kg3 {[%emt 0:00:00]} g5 {[%emt 0:00:00]} 61. Kh3 {[%emt 0:03:00]} Ke5 {[%emt 0:00:00]} 1/2-1/2

[Event "Turkish Cup 2024"]
[Site "Denizli"]
[Date "2024.08.02"]
[Round "5"]
[White "Kocakaplan, Emre"]
[Black "Gunduz, Umut Erdem"]
[Result "0-1"]
[ECO "A06"]
[WhiteElo "1926"]
[BlackElo "2276"]
[Annotator "RC"]
[PlyCount "86"]
[EventDate "2024.08.01"]
[EventType "swiss"]
[EventCountry "TUR"]
[SourceTitle "playchess.com"]
[Source "ChessBase"]
[SourceQuality "1"]
[TimeControl "5400+30"]

1. Nf3 {[%emt 0:01:00]} c5 {[%emt 0:07:00]} 2. b3 {[%emt 0:00:00]} Nc6 {[%emt 0:01:30]} 3. Bb2 {[%emt 0:00:00]} d5 {[%emt 0:00:30]} 4. e3 {[%emt 0:00:30]} Qd6 {[%emt 0:12:30]} 5. d4 {[%emt 0:19:30]} Bg4 {[%emt 0:08:30]} 6. Nc3 {[%emt 0:04:30]} cxd4 {[%emt 0:04:30]} 7. Nb5 {[%emt 0:02:30]} Qb4+ {[%emt 0:02:30]} 8. c3 {[%emt 0:01:30]} Qa5 {[%emt 0:00:00]} 9. b4 {[%emt 0:16:30]} Qb6 {[%emt 0:02:00]} 10. c4 {[%emt 0:08:30]} dxe3 {[%emt 0:05:30]} 11. c5 {[%emt 0:00:30]} exf2+ {[%emt 0:00:30]} 12. Kxf2 {[%emt 0:00:30]} Qd8 {[%emt 0:00:30]} 13. Qb3 {[%emt 0:02:30]} a6 {[%emt 0:09:30]} 14. Nbd4 {[%emt 0:14:30]} Nf6 {[%emt 0:09:30]} 15. Bd3 {[%emt 0:00:30]} Ne4+ {[%emt 0:08:30]} 16. Bxe4 {[%emt 0:05:30]} dxe4 {[%emt 0:00:30]} 17. Nxc6 {[%emt 0:01:41]} bxc6 {[%emt 0:00:30]} 18. Rhd1 {[%emt 0:00:30]} Qc7 {[%emt 0:03:30]} 19. Ne5 {[%emt 0:03:30]} Be6 {[%emt 0:00:30]} 20. Qa4 {[%emt 0:01:15]} Rc8 {[%emt 0:00:00]} 21. Qxa6 {[%emt 0:02:16]} f6 {[%emt 0:01:00]} 22. Qxc6+ {[%emt 0:00:57]} Qxc6 {[%emt 0:00:30]} 23. Nxc6 {[%emt 0:00:00]} Rxc6 {[%emt 0:00:00]} 24. Rac1 {[%emt 0:01:27]} Bg4 {[%emt 0:03:00]} 25. Rd4 {[%emt 0:04:29]} e5 {[%emt 0:01:07]} 26. Rdc4 {[%emt 0:04:01]} e3+ {[%emt 0:01:11]} 27. Ke1 {[%emt 0:03:43]} Be6 {[%emt 0:00:16]} 28. R4c2 {[%emt 0:00:22]} Bf5 {[%emt 0:05:22]} 29. Rc3 {[%emt 0:00:35]} Be7 {[%emt 0:00:43]} 30. b5 {[%emt 0:00:28]} Re6 {[%emt 0:04:20]} 31. a4 {[%emt 0:01:19]} Kd7 {[%emt 0:00:03]} 32. a5 {[%emt 0:00:40]} Rb8 {[%emt 0:01:39]} 33. Rb3 {[%emt 0:00:31]} Be4 {[%emt 0:02:55]} 34. c6+ {[%emt 0:00:40]} Kc8 {[%emt 0:01:05]} 35. Ke2 {[%emt 0:00:33]} Rxc6 {[%emt 0:00:30]} 36. Kxe3 {[%emt 0:00:02]} Rxc1 {[%emt 0:00:40]} 37. Bxc1 {[%emt 0:00:30]} Bxg2 {[%emt 0:00:30]} 38. Kf2 {[%emt 0:00:25]} Bd5 {[%emt 0:00:20]} 39. Rb1 {[%emt 0:00:59]} Bc4 {[%emt 0:00:45]} 40. b6 {[%emt 0:00:16]} Ba6 {[%emt 0:00:00]} 41. Be3 {[%emt 0:00:48]} Kb7 {[%emt 0:00:00]} 42. Rd1 {[%emt 0:00:00]} Rd8 {[%emt 0:00:29]} 43. Rc1 {[%emt 0:00:28]} Rd7 {[%emt 0:00:30]} 0-1

[Event "Turkish Cup 2024"]
[Site "Denizli"]
[Date "2024.08.02"]
[Round "5"]
[White "Kolat, Ata"]
[Black "Baylav, Can"]
[Result "0-1"]
[ECO "A48"]
[WhiteElo "1908"]
[BlackElo "2086"]
[Annotator "RC"]
[PlyCount "102"]
[EventDate "2024.08.01"]
[EventType "swiss"]
[EventCountry "TUR"]
[SourceTitle "playchess.com"]
[Source "ChessBase"]
[SourceQuality "1"]
[TimeControl "5400+30"]

1. d4 {[%emt 0:01:00]} Nf6 {[%emt 0:06:00]} 2. Bf4 {[%emt 0:00:00]} g6 {[%emt 0:00:30]} 3. e3 {[%emt 0:00:00]} Bg7 {[%emt 0:00:30]} 4. Nf3 {[%emt 0:00:30]} d6 {[%emt 0:00:00]} 5. h3 {[%emt 0:00:30]} O-O {[%emt 0:00:00]} 6. Nbd2 {[%emt 0:00:00]} Nbd7 {[%emt 0:00:30]} 7. c3 {[%emt 0:01:00]} Qe8 {[%emt 0:00:30]} 8. Bc4 {[%emt 0:01:30]} e5 {[%emt 0:01:30]} 9. dxe5 {[%emt 0:00:30]} dxe5 {[%emt 0:00:30]} 10. Bh2 {[%emt 0:01:30]} Qe7 {[%emt 0:00:30]} 11. O-O {[%emt 0:00:30]} b6 {[%emt 0:01:30]} 12. a4 {[%emt 0:03:30]} a5 {[%emt 0:03:30]} 13. Qc2 {[%emt 0:01:30]} Bb7 {[%emt 0:00:30]} 14. Rfd1 {[%emt 0:00:30]} Rad8 {[%emt 0:02:30]} 15. Rac1 {[%emt 0:02:30]} Ne8 {[%emt 0:11:30]} 16. Bb5 {[%emt 0:08:30]} Nd6 {[%emt 0:02:30]} 17. Bxd7 {[%emt 0:06:30]} Rxd7 {[%emt 0:00:00]} 18. b4 {[%emt 0:00:00]} Ra8 {[%emt 0:07:00]} 19. b5 {[%emt 0:03:00]} c6 {[%emt 0:00:00]} 20. bxc6 {[%emt 0:05:30]} Bxc6 {[%emt 0:00:00]} 21. Rb1 {[%emt 0:01:30]} Rb7 {[%emt 0:07:30]} 22. c4 {[%emt 0:03:30]} Qe8 {[%emt 0:00:00]} 23. Nb3 {[%emt 0:02:30]} Be4 {[%emt 0:02:00]} 24. Qc3 {[%emt 0:04:30]} Bxb1 {[%emt 0:00:30]} 25. Rxd6 {[%emt 0:00:00]} e4 {[%emt 0:03:30]} 26. Nfd4 {[%emt 0:00:00]} Qxa4 {[%emt 0:00:30]} 27. Bg3 {[%emt 0:03:30]} Qb4 {[%emt 0:01:30]} 28. Qxb4 {[%emt 0:02:30]} axb4 {[%emt 0:00:30]} 29. Rc6 {[%emt 0:00:30]} Bxd4 {[%emt 0:01:30]} 30. Nxd4 {[%emt 0:00:30]} Ba2 {[%emt 0:00:00]} 31. Be5 {[%emt 0:00:30]} Re8 {[%emt 0:03:00]} 32. Bf6 {[%emt 0:01:30]} Rbb8 {[%emt 0:00:30]} 33. Rc7 {[%emt 0:03:30]} Rbc8 {[%emt 0:01:30]} 34. Rb7 {[%emt 0:00:30]} Bxc4 {[%emt 0:01:30]} 35. Ra7 {[%emt 0:03:30]} b3 {[%emt 0:02:30]} 36. Ra1 {[%emt 0:00:30]} h6 {[%emt 0:00:30]} 37. Rb1 {[%emt 0:00:30]} Rc5 {[%emt 0:00:30]} 38. Nxb3 {[%emt 0:01:30]} Rb5 {[%emt 0:00:30]} 39. Nd2 {[%emt 0:00:30]} Rxb1+ {[%emt 0:00:30]} 40. Nxb1 {[%emt 0:00:00]} Bd3 {[%emt 0:00:00]} 41. Nc3 {[%emt 0:00:00]} b5 {[%emt 0:00:00]} 42. Nd5 {[%emt 0:00:30]} Ra8 {[%emt 0:01:30]} 43. h4 {[%emt 0:00:30]} Ra4 {[%emt 0:00:30]} 44. Bc3 {[%emt 0:01:30]} f5 {[%emt 0:01:30]} 45. Bb4 {[%emt 0:00:30]} Bc4 {[%emt 0:00:30]} 46. Ne7+ {[%emt 0:00:30]} Kf7 {[%emt 0:00:00]} 47. Bc5 {[%emt 0:00:30]} b4 {[%emt 0:01:00]} 48. Nc6 {[%emt 0:00:30]} b3 {[%emt 0:00:00]} 49. Ne5+ {[%emt 0:00:30]} Ke6 {[%emt 0:00:00]} 50. Bd4 {[%emt 0:00:00]} Bd3 {[%emt 0:00:30]} 51. Nc6 {[%emt 0:01:00]} Ra2 {[%emt 0:00:00]} 0-1

[Event "Turkish Cup 2024"]
[Site "Denizli"]
[Date "2024.08.02"]
[Round "5"]
[White "Topal, Hasan Gokmen"]
[Black "Gebes, Ata"]
[Result "1-0"]
[ECO "B23"]
[WhiteElo "1905"]
[BlackElo "1874"]
[Annotator "RC"]
[PlyCount "151"]
[EventDate "2024.08.01"]
[EventType "swiss"]
[EventCountry "TUR"]
[SourceTitle "playchess.com"]
[Source "ChessBase"]
[SourceQuality "1"]
[TimeControl "5400+30"]

1. e4 {[%emt 0:01:00]} c5 {[%emt 0:03:00]} 2. Nc3 {[%emt 0:00:30]} d6 {[%emt 0:00:30]} 3. d4 {[%emt 0:00:30]} cxd4 {[%emt 0:00:30]} 4. Qxd4 {[%emt 0:00:00]} Nc6 {[%emt 0:06:30]} 5. Qd2 {[%emt 0:00:00]} Nf6 {[%emt 0:02:30]} 6. b3 {[%emt 0:00:00]} g6 {[%emt 0:03:30]} 7. Bb2 {[%emt 0:00:00]} Bg7 {[%emt 0:00:00]} 8. O-O-O {[%emt 0:00:00]} O-O {[%emt 0:10:00]} 9. f3 {[%emt 0:01:00]} Qa5 {[%emt 0:08:30]} 10. Kb1 {[%emt 0:00:30]} Bd7 {[%emt 0:12:30]} 11. g4 {[%emt 0:07:30]} Rfc8 {[%emt 0:14:30]} 12. h4 {[%emt 0:23:30]} h5 {[%emt 0:02:30]} 13. gxh5 {[%emt 0:05:30]} Nxh5 {[%emt 0:00:30]} 14. Nh3 {[%emt 0:00:30]} Ne5 {[%emt 0:05:30]} 15. Nd5 {[%emt 0:03:30]} Qxd2 {[%emt 0:00:30]} 16. Rxd2 {[%emt 0:00:00]} Kf8 {[%emt 0:03:30]} 17. Bg2 {[%emt 0:03:00]} Bxh3 {[%emt 0:11:23]} 18. Bxh3 {[%emt 0:01:30]} e6 {[%emt 0:00:51]} 19. Ne3 {[%emt 0:05:30]} Nxf3 {[%emt 0:02:59]} 20. Rf2 {[%emt 0:01:30]} Ng3 {[%emt 0:08:31]} 21. Rxf3 {[%emt 0:00:30]} Nxh1 {[%emt 0:00:30]} 22. Bg2 {[%emt 0:00:30]} Bxb2 {[%emt 0:00:30]} 23. Kxb2 {[%emt 0:00:30]} Ke7 {[%emt 0:00:30]} 24. Bxh1 {[%emt 0:00:30]} Rh8 {[%emt 0:00:30]} 25. Rh3 {[%emt 0:00:30]} Rh7 {[%emt 0:00:30]} 26. Bf3 {[%emt 0:00:30]} Rah8 {[%emt 0:00:44]} 27. Ng2 {[%emt 0:01:30]} b6 {[%emt 0:00:18]} 28. Rg3 {[%emt 0:00:30]} Rh6 {[%emt 0:00:11]} 29. Kc3 {[%emt 0:06:30]} Kf8 {[%emt 0:01:18]} 30. Kd3 {[%emt 0:01:30]} f5 {[%emt 0:00:28]} 31. Ke3 {[%emt 0:20:01]} Kf7 {[%emt 0:00:47]} 32. Be2 {[%emt 0:01:21]} e5 {[%emt 0:00:49]} 33. Kf2 {[%emt 0:01:28]} Kf6 {[%emt 0:00:27]} 34. Rd3 {[%emt 0:01:09]} Ke7 {[%emt 0:00:15]} 35. Rc3 {[%emt 0:00:26]} fxe4 {[%emt 0:00:31]} 36. Rc7+ {[%emt 0:00:28]} Kd8 {[%emt 0:00:18]} 37. Rxa7 {[%emt 0:00:19]} R6h7 {[%emt 0:01:10]} 38. Ra6 {[%emt 0:00:15]} Kc7 {[%emt 0:00:43]} 39. a4 {[%emt 0:01:14]} Rf7+ {[%emt 0:00:30]} 40. Ke3 {[%emt 0:00:00]} Rb8 {[%emt 0:00:19]} 41. Ra7+ {[%emt 0:02:15]} Rb7 {[%emt 0:00:06]} 42. Rxb7+ {[%emt 0:00:30]} Kxb7 {[%emt 0:00:30]} 43. Kxe4 {[%emt 0:00:00]} Kc6 {[%emt 0:00:00]} 44. c4 {[%emt 0:00:09]} Kc5 {[%emt 0:00:04]} 45. Bd3 {[%emt 0:01:06]} Rf2 {[%emt 0:00:22]} 46. Ne1 {[%emt 0:00:16]} Rf4+ {[%emt 0:00:29]} 47. Ke3 {[%emt 0:00:05]} Rxh4 {[%emt 0:01:03]} 48. Bxg6 {[%emt 0:00:05]} Rh3+ {[%emt 0:00:02]} 49. Nf3 {[%emt 0:01:52]} Kb4 {[%emt 0:00:19]} 50. Bf7 {[%emt 0:02:13]} Rh7 {[%emt 0:00:55]} 51. Be6 {[%emt 0:01:41]} Rh6 {[%emt 0:01:00]} 52. Bd5 {[%emt 0:00:57]} Kc3 {[%emt 0:00:26]} 53. Ng5 {[%emt 0:00:36]} Rh2 {[%emt 0:01:09]} 54. Ne4+ {[%emt 0:00:31]} Kb4 {[%emt 0:00:14]} 55. Nxd6 {[%emt 0:00:51]} Rh3+ {[%emt 0:00:15]} 56. Ke4 {[%emt 0:00:00]} Ka5 {[%emt 0:01:16]} 57. Kxe5 {[%emt 0:01:57]} Rxb3 {[%emt 0:00:24]} 58. c5 {[%emt 0:00:04]} Re3+ {[%emt 0:00:51]} 59. Kd4 {[%emt 0:00:10]} Re7 {[%emt 0:00:13]} 60. cxb6 {[%emt 0:00:10]} Kxa4 {[%emt 0:00:13]} 61. b7 {[%emt 0:00:21]} Rxb7 {[%emt 0:00:00]} 62. Nxb7 {[%emt 0:00:30]} Ka3 {[%emt 0:00:00]} 63. Kc3 {[%emt 0:00:13]} Ka4 {[%emt 0:00:00]} 64. Bc4 {[%emt 0:01:42]} Ka3 {[%emt 0:00:14]} 65. Nd6 {[%emt 0:00:30]} Ka4 {[%emt 0:00:00]} 66. Be6 {[%emt 0:03:21]} Ka3 {[%emt 0:00:00]} 67. Nb5+ {[%emt 0:00:33]} Ka4 {[%emt 0:00:00]} 68. Kc4 {[%emt 0:00:22]} Ka5 {[%emt 0:00:00]} 69. Bf5 {[%emt 0:00:00]} Kb6 {[%emt 0:00:26]} 70. Be4 {[%emt 0:00:20]} Ka5 {[%emt 0:00:00]} 71. Kc5 {[%emt 0:00:00]} Ka4 {[%emt 0:00:11]} 72. Bc2+ {[%emt 0:00:12]} Ka5 {[%emt 0:00:00]} 73. Nd6 {[%emt 0:01:27]} Ka6 {[%emt 0:00:00]} 74. Be4 {[%emt 0:00:21]} Ka5 {[%emt 0:00:00]} 75. Nc4+ {[%emt 0:00:18]} Ka4 {[%emt 0:00:10]} 76. Bc2# {[%emt 0:00:00]} 1-0

[Event "Turkish Cup 2024"]
[Site "Denizli"]
[Date "2024.08.02"]
[Round "5"]
[White "Cakir, Ege"]
[Black "Bilir, Ibrahim"]
[Result "1/2-1/2"]
[ECO "D11"]
[WhiteElo "1889"]
[BlackElo "1830"]
[Annotator "NA RC"]
[PlyCount "94"]
[EventDate "2024.08.01"]
[EventType "swiss"]
[EventCountry "TUR"]
[SourceTitle "playchess.com"]
[Source "ChessBase"]
[SourceQuality "1"]
[TimeControl "5400+30"]

1. d4 {[%emt 0:03:00]} d5 {[%emt 0:02:00]} 2. Nf3 {[%emt 0:00:30]} Nf6 {[%emt 0:00:30]} 3. g3 {[%emt 0:00:00]} Bg4 {[%emt 0:00:30]} 4. Bg2 {[%emt 0:03:00]} e6 {[%emt 0:02:30]} 5. O-O {[%emt 0:02:30]} Be7 {[%emt 0:02:30]} 6. c4 {[%emt 0:05:30]} c6 {[%emt 0:00:30]} 7. Nc3 {[%emt 0:03:30]} Nbd7 {[%emt 0:07:30]} 8. Qb3 {[%emt 0:19:30]} Qb6 {[%emt 0:02:30]} 9. Qxb6 $15 {[%emt 0:02:30]} (9. Re1 $11) 9... axb6 {[%emt 0:03:30]} 10. Nd2 {[%emt 0:01:30]} dxc4 {[%emt 0:03:30]} 11. h3 {[%emt 0:03:30]} Bh5 {[%emt 0:01:30]} 12. g4 {[%emt 0:00:00]} Bg6 {[%emt 0:00:30]} 13. Nxc4 {[%emt 0:00:00]} b5 {[%emt 0:03:30]} 14. Ne5 {[%emt 0:06:30]} Nxe5 {[%emt 0:14:30]} 15. dxe5 {[%emt 0:00:00]} Nd7 {[%emt 0:01:30]} 16. f4 {[%emt 0:04:00]} b4 {[%emt 0:03:30]} 17. Ne4 {[%emt 0:01:30]} Bxe4 {[%emt 0:00:30]} 18. Bxe4 {[%emt 0:00:30]} Nc5 {[%emt 0:00:00]} 19. Bc2 {[%emt 0:11:30]} b3 {[%emt 0:01:00]} 20. Bb1 {[%emt 0:00:30]} O-O {[%emt 0:00:30]} 21. Be3 {[%emt 0:02:30]} Rfd8 {[%emt 0:07:30]} 22. Rc1 {[%emt 0:01:30]} Ra5 {[%emt 0:02:30]} 23. Kg2 {[%emt 0:03:30]} Rda8 {[%emt 0:02:30]} 24. a3 {[%emt 0:02:30]} Na4 {[%emt 0:03:30]} 25. Bd4 {[%emt 0:05:04]} Rd5 {[%emt 0:00:30]} 26. Bc3 {[%emt 0:01:42]} Rc5 {[%emt 0:06:30]} 27. Bd3 {[%emt 0:03:02]} Nxc3 {[%emt 0:02:30]} 28. Rxc3 {[%emt 0:00:30]} Rxc3 {[%emt 0:00:30]} 29. bxc3 {[%emt 0:00:00]} Bxa3 {[%emt 0:05:30]} 30. Kf3 {[%emt 0:02:00]} Ra5 {[%emt 0:00:30]} 31. Rb1 {[%emt 0:00:59]} b2 {[%emt 0:00:30]} 32. Ke3 {[%emt 0:00:34]} g5 {[%emt 0:01:43]} 33. fxg5 {[%emt 0:03:25]} Rxe5+ {[%emt 0:00:17]} 34. Kd2 {[%emt 0:00:00]} Rxg5 {[%emt 0:00:37]} 35. Kc2 {[%emt 0:00:27]} Ra5 {[%emt 0:00:23]} 36. Kb3 {[%emt 0:00:25]} h6 {[%emt 0:01:38]} 37. Rf1 {[%emt 0:01:05]} Kg7 {[%emt 0:01:11]} 38. c4 {[%emt 0:01:28]} Bc5 {[%emt 0:02:15]} 39. Kxb2 {[%emt 0:00:48]} Bd4+ {[%emt 0:00:10]} 40. Kb3 {[%emt 0:00:00]} Ra1 {[%emt 0:01:06]} 41. Rf4 {[%emt 0:00:47]} Be5 {[%emt 0:00:52]} 42. Re4 {[%emt 0:01:37]} f6 {[%emt 0:01:16]} 43. c5 {[%emt 0:01:04]} Rc1 {[%emt 0:03:11]} 44. Rb4 {[%emt 0:01:07]} f5 {[%emt 0:02:16]} 45. Rxb7+ {[%emt 0:00:31]} Kf6 {[%emt 0:00:05]} 46. Rh7 {[%emt 0:01:10]} Kg6 {[%emt 0:00:47]} 47. Re7 {[%emt 0:00:49]} Kf6 {[%emt 0:00:05]} 1/2-1/2

[Event "Turkish Cup 2024"]
[Site "Denizli"]
[Date "2024.08.02"]
[Round "5"]
[White "Sabahi, Ali Can"]
[Black "Yildiz, Serdar Murat"]
[Result "0-1"]
[ECO "A47"]
[WhiteElo "1882"]
[BlackElo "2182"]
[Annotator "RC"]
[PlyCount "82"]
[EventDate "2024.08.01"]
[EventType "swiss"]
[EventCountry "TUR"]
[SourceTitle "playchess.com"]
[Source "ChessBase"]
[SourceQuality "1"]
[TimeControl "5400+30"]

1. Nf3 {[%emt 0:02:00]} Nf6 {[%emt 0:01:00]} 2. c4 {[%emt 0:00:00]} b6 {[%emt 0:00:00]} 3. e3 {[%emt 0:00:00]} c5 {[%emt 0:01:00]} 4. d4 {[%emt 0:00:00]} g6 {[%emt 0:01:30]} 5. Bd3 {[%emt 0:08:00]} cxd4 {[%emt 0:01:30]} 6. exd4 {[%emt 0:00:30]} d5 {[%emt 0:00:30]} 7. O-O {[%emt 0:01:30]} Bg7 {[%emt 0:00:30]} 8. Nc3 {[%emt 0:01:30]} O-O {[%emt 0:07:30]} 9. Ne5 {[%emt 0:00:30]} Bb7 {[%emt 0:01:30]} 10. Be3 {[%emt 0:00:30]} Nc6 {[%emt 0:02:30]} 11. f4 {[%emt 0:10:30]} Nb4 {[%emt 0:00:30]} 12. f5 {[%emt 0:09:30]} Nxd3 {[%emt 0:02:30]} 13. Qxd3 {[%emt 0:00:00]} dxc4 {[%emt 0:00:00]} 14. Qxc4 {[%emt 0:00:00]} Nd5 {[%emt 0:03:00]} 15. Rae1 {[%emt 0:14:30]} Rc8 {[%emt 0:01:30]} 16. Qa4 {[%emt 0:04:30]} Nxc3 {[%emt 0:02:30]} 17. bxc3 {[%emt 0:00:30]} Rxc3 {[%emt 0:00:30]} 18. fxg6 {[%emt 0:00:00]} hxg6 {[%emt 0:00:30]} 19. Qxa7 {[%emt 0:05:00]} Rxe3 {[%emt 0:22:30]} 20. Rxe3 {[%emt 0:00:30]} Qxd4 {[%emt 0:00:00]} 21. Ng4 {[%emt 0:07:30]} Bc8 {[%emt 0:04:00]} 22. Kh1 {[%emt 0:14:30]} Bxg4 {[%emt 0:00:30]} 23. Rxe7 {[%emt 0:00:30]} Be6 {[%emt 0:03:30]} 24. Rb7 {[%emt 0:03:38]} Bd5 {[%emt 0:08:30]} 25. Rd7 {[%emt 0:00:30]} Qe4 {[%emt 0:00:30]} 26. Rxd5 {[%emt 0:07:15]} Qxd5 {[%emt 0:00:30]} 27. Qxb6 {[%emt 0:00:05]} Qxa2 {[%emt 0:00:30]} 28. h3 {[%emt 0:00:30]} Qe2 {[%emt 0:00:00]} 29. Qf2 {[%emt 0:01:51]} Qxf2 {[%emt 0:01:00]} 30. Rxf2 {[%emt 0:00:30]} Re8 {[%emt 0:00:00]} 31. g3 {[%emt 0:00:13]} Re3 {[%emt 0:00:00]} 32. Kg2 {[%emt 0:04:50]} Be5 {[%emt 0:00:00]} 33. Rf3 {[%emt 0:02:12]} Rxf3 {[%emt 0:00:00]} 34. Kxf3 {[%emt 0:00:30]} Kg7 {[%emt 0:00:00]} 35. h4 {[%emt 0:00:00]} Kh6 {[%emt 0:01:00]} 36. g4 {[%emt 0:00:00]} Bc3 {[%emt 0:00:00]} 37. Kf4 {[%emt 0:00:01]} Be1 {[%emt 0:00:00]} 38. g5+ {[%emt 0:03:25]} Kh5 {[%emt 0:00:30]} 39. Ke5 {[%emt 0:00:03]} Bc3+ {[%emt 0:00:00]} 40. Kd6 {[%emt 0:00:30]} Kxh4 {[%emt 0:00:00]} 41. Ke7 {[%emt 0:00:00]} Kxg5 {[%emt 0:00:30]} 0-1

[Event "Turkish Cup 2024"]
[Site "Denizli"]
[Date "2024.08.02"]
[Round "5"]
[White "Var, Sefa"]
[Black "Maras, Huseyin Kayra"]
[Result "1-0"]
[ECO "C92"]
[WhiteElo "1841"]
[BlackElo "1860"]
[Annotator "NA RC"]
[PlyCount "75"]
[EventDate "2024.08.01"]
[EventType "swiss"]
[EventCountry "TUR"]
[SourceTitle "playchess.com"]
[Source "ChessBase"]
[SourceQuality "1"]
[TimeControl "5400+30"]

1. e4 {[%emt 0:02:00]} e5 {[%emt 0:01:00]} 2. Nf3 {[%emt 0:00:00]} Nc6 {[%emt 0:00:00]} 3. Bb5 {[%emt 0:11:00]} a6 {[%emt 0:00:00]} 4. Ba4 {[%emt 0:00:30]} Nf6 {[%emt 0:00:30]} 5. O-O {[%emt 0:00:00]} Be7 {[%emt 0:00:30]} 6. Re1 {[%emt 0:00:00]} b5 {[%emt 0:00:00]} 7. Bb3 {[%emt 0:00:00]} O-O {[%emt 0:00:00]} 8. h3 {[%emt 0:01:00]} Bb7 {[%emt 0:00:30]} 9. d3 {[%emt 0:01:30]} d6 {[%emt 0:01:30]} 10. c3 {[%emt 0:00:30]} Na5 {[%emt 0:01:30]} 11. Bc2 {[%emt 0:01:30]} c5 {[%emt 0:00:00]} 12. Nbd2 {[%emt 0:00:30]} Re8 {[%emt 0:01:00]} 13. Nf1 {[%emt 0:00:30]} Bf8 {[%emt 0:00:30]} 14. Ng3 {[%emt 0:01:30]} g6 {[%emt 0:03:30]} 15. d4 $15 {[%emt 0:23:30]} (15. a3 $11) 15... cxd4 {[%emt 0:07:30]} 16. cxd4 {[%emt 0:02:30]} exd4 {[%emt 0:00:30]} 17. Nxd4 {[%emt 0:00:30]} Bg7 {[%emt 0:00:30]} 18. Bf4 {[%emt 0:13:30]} Qb6 {[%emt 0:07:30]} 19. Nf3 {[%emt 0:02:30]} Rad8 {[%emt 0:05:30]} 20. b3 {[%emt 0:03:30]} d5 {[%emt 0:06:30]} 21. e5 {[%emt 0:01:30]} Ne4 {[%emt 0:00:00]} 22. Qd4 {[%emt 0:08:30]} Qxd4 {[%emt 0:14:00]} 23. Nxd4 {[%emt 0:00:00]} g5 {[%emt 0:13:30]} 24. Nxe4 {[%emt 0:05:00]} dxe4 {[%emt 0:00:30]} 25. Bd2 {[%emt 0:00:00]} Rxd4 {[%emt 0:00:30]} 26. Bxa5 {[%emt 0:00:00]} Rc8 {[%emt 0:01:30]} 27. Bb6 {[%emt 0:03:20]} Bxe5 {[%emt 0:11:30]} 28. Bxd4 {[%emt 0:00:47]} Bxd4 {[%emt 0:00:30]} 29. Rad1 {[%emt 0:01:52]} Bxf2+ {[%emt 0:00:30]} 30. Kxf2 {[%emt 0:00:15]} Rxc2+ {[%emt 0:00:00]} 31. Ke3 {[%emt 0:02:46]} Bc6 {[%emt 0:04:00]} 32. Rc1 {[%emt 0:00:53]} Rxc1 {[%emt 0:04:55]} 33. Rxc1 {[%emt 0:00:46]} Bd7 {[%emt 0:00:08]} 34. Rc7 {[%emt 0:02:16]} Bf5 {[%emt 0:02:08]} 35. Rc5 {[%emt 0:01:24]} Bg6 {[%emt 0:00:18]} 36. Rxg5 {[%emt 0:00:10]} Kg7 {[%emt 0:01:57]} 37. Rc5 {[%emt 0:00:43]} Kf6 {[%emt 0:00:12]} 38. Kf4 {[%emt 0:00:25]} 1-0